Cogmind - Beta 16 @@@ ROGUE MODE // 2025.11.11 @ 15:47:03 Player: Maulwurf Result: Destroyed by as-32330 with Assembled Blade Performance ------------- Evolutions (0) 0 Regions Visited (3) 600 Robots Destroyed (19) 95 Value Destroyed (216) 216 Prototype IDs (0) 0 Alien Tech Used (0) 0 Bonus (-102) -102 TOTAL SCORE: 809 Bonus ------- Friendly Fire -102 Cogmind --------- Core Integrity 0/250 Matter 300/300 Energy 100/100 System Corruption 0% Temperature Cool (0) Movement Core (200) Ox3 Location -10/Exiles Parts ------- > --- POWER (1) -------- (None) > --- PROPULSION (2) --- (None) > --- UTILITY (2) ------ Medium Storage Unit Improved Terrain Scanner > --- WEAPON (2) ------- (None) > --- INVENTORY (10) --- Ion Engine Aluminum Leg Small Storage Unit Medium Battery (150) High-capacity Matter Pod (153) Spread Laser Assault Rifle Improved Light Cannon Grenade Launcher Mining Laser Peak State ------------ > --- POWER ------------ Ion Engine > --- PROPULSION ------- Aluminum Leg Aluminum Leg > --- UTILITY ---------- Medium Storage Unit Improved Terrain Scanner > --- WEAPON ----------- Spread Laser Improved Light Cannon > --- INVENTORY -------- Ion Engine Light Ion Engine Aluminum Leg EM Shotgun Spread Laser Assault Rifle Improved Light Cannon Mining Laser [Rating: 12] Favorites ----------- Power Ion Engine Engine Ion Engine Propulsion Aluminum Leg Treads Light Treads Leg Aluminum Leg Utility Improved Terrain Scanner Device Improved Terrain Scanner Storage Medium Storage Unit Weapon Spread Laser Energy Gun Spread Laser Ballistic Gun Assault Rifle Ballistic Cannon Improved Light Cannon Build | -11 -10 -10 -10 ------- Run | Yrd Mat Min Exi Slots Evolved . | . . . . Power . | . . . . Propulsion . | . . . . Utility . | . . . . Weapon . | . . . . Parts Attached 16 | 6 6 1 3 Power 2 | 1 1 . . Engine 2 | 1 1 . . Core . | . . . . Reactor . | . . . . Propulsion 4 | 2 2 . . Treads 2 | 2 . . . Leg 2 | . 2 . . Wheel . | . . . . Hover . | . . . . Flight . | . . . . Utility 5 | 1 1 . 3 Device 1 | 1 . . . Storage 4 | . 1 . 3 Processor . | . . . . Hackware . | . . . . Protection . | . . . . Artifact . | . . . . Weapon 5 | 2 2 1 . Energy Gun 3 | 1 2 . . Energy Cannon . | . . . . Ballistic Gun 1 | 1 . . . Ballistic Cannon 1 | . . 1 . Launcher . | . . . . Special Weapon . | . . . . Impact Weapon . | . . . . Slashing Weapon . | . . . . Piercing Weapon . | . . . . Special Melee Weapon . | . . . . Unidentified Prototypes . | . . . . Parts Lost 6 | . . 1 5 Power 1 | . . . 1 Propulsion 2 | . . . 2 Utility . | . . . . Weapon 3 | . . 1 2 Highest Loss Streak 5 | . . 1 5 To Critical Strikes . | . . . . Average Backups 6 | 4 3 8 9 Power 1 | . . 1 1 Propulsion . | 1 . 1 . Utility . | . . . 1 Weapon 3 | . 2 5 5 Tool/Special . | . . . . Unused Backups 13 | 2 1 . 10 Power 2 | . . . 2 Propulsion 2 | 1 . . 1 Utility 2 | . 1 . 1 Weapon 7 | 1 . . 6 Tool/Special . | . . . . Average Slot Usage (%) 95 | . 89 100 96 Engine 13 | . 13 14 13 Treads 1 | . 5 . . Leg 23 | . 15 28 27 Device 13 | . 14 14 13 Storage 13 | . 11 14 13 Energy Gun 13 | . 13 14 13 Ballistic Gun 5 | . 14 5 . Ballistic Cannon 7 | . . 8 13 Peak Build Rating 12 | 8 11 12 12 Average Rating 10 | 4 9 11 11 On Entrance 7 | . 8 11 12 Avg Prop Armor Cover (%) . | . . . . Naked Turns . | . . . . Heaviest Build 23 | 10 21 23 23 Greatest Support 40 | 40 40 20 20 Greatest Overweight (x) 4 | . 4 1 3 Average Overweight (x) . | . 1 1 . Largest Inventory Capacity 35 | 5 10 10 35 Average Capacity 9 | 5 9 10 9 Most Carried 10 | 5 8 9 10 Average Carried 6 | 4 3 8 9 Final Capacity 10 | 5 10 10 10 Final Carried 10 | 4 8 9 10 Class Distribution -------------------- 100% | Mutant Dominant Class ---------------- Mutant | -10/Materials Mutant | -10/Mines Mutant | -10/Exiles Resources | -11 -10 -10 -10 ----------- Run | Yrd Mat Min Exi Matter Collected 486 | 317 96 43 30 Remotely . | . . . . Salvage Created 426 | 217 158 51 . Parts 37 | 17 14 6 . Haulers Intercepted . | . . . . Recyclers Shooed . | . . . . Parts Field Recycled . | . . . . Retrieved Matter . | . . . . Parts Self-Destructed . | . . . . Prevented . | . . . . Parts Restored . | . . . . Kills | -11 -10 -10 -10 ------- Run | Yrd Mat Min Exi Combat Hostiles Destroyed 10 | . 5 5 . Guns 9 | . 5 4 . Cannons 1 | . . 1 . Classes Destroyed 6 | 3 3 . . Worker 2 | 2 . . . Tunneler 4 | 4 . . . Recycler 1 | 1 . . . Watcher 2 | . 2 . . Swarmer 8 | . 3 5 . Grunt 2 | . 2 . . Best Kill Streak 3 | 3 3 3 . Combat Bots Only 3 | . 3 3 . Max Kills in Single Turn 1 | 1 1 1 . Gunslinging . | . . . . Exploded . | . . . . Melee . | . . . . Uniques/NPCs Destroyed . | . . . . Combat | -11 -10 -10 -10 -------- Run | Yrd Mat Min Exi Hostile Shots Fired 88 | . 25 29 34 Missed 22 | . 5 5 12 Hits 66 | . 20 24 22 Melee 1 | . . . 1 Projectile 65 | . 20 24 21 Critical Strikes 2 | . 1 . 1 Damage Taken 837 | . 190 194 453 Core 260 | . 31 43 186 Absorbed by Shields . | . . . . Core Remaining (%) 100 | 100 . . . Volleys Fired 45 | 19 12 11 3 Largest 2 | 2 2 2 2 Hottest 98 | 70 85 98 98 Shots Fired 90 | 38 24 22 6 Gun 84 | 38 24 19 3 Cannon 6 | . . 3 3 Launcher . | . . . . Special . | . . . . Kinetic 45 | 19 12 11 3 Thermal 45 | 19 12 11 3 Explosive . | . . . . Electromagnetic . | . . . . Robot Hit Streak 7 | 5 7 3 3 Robot Miss Streak 8 | 2 8 8 6 Penetration Max . | . . . . Secondary Targets 1 | . . 1 . Max Gunslinging Chain 1 | . . 1 . Shots Hit Robots 62 | 24 17 16 5 Core Hits 38 | 8 17 11 2 Critical Kills . | . . . . Critical Parts Destroyed . | . . . . Critical Strikes . | . . . . Melee Attacks . | . . . . Impact . | . . . . Slashing . | . . . . Piercing . | . . . . Sneak Attacks . | . . . . Combat Hostiles . | . . . . Follow-up Attacks . | . . . . Damage Inflicted 717 | 296 165 168 88 Guns 630 | 296 165 145 24 Cannons 87 | . . 23 64 Explosions . | . . . . Melee . | . . . . Ramming . | . . . . Kinetic 363 | 145 71 83 64 Thermal 354 | 151 94 85 24 Explosive . | . . . . Electromagnetic . | . . . . Impact . | . . . . Slashing . | . . . . Piercing . | . . . . Highest Corruption . | . . . . Average Corruption . | . . . . Corruption Purged . | . . . . Corruption Blocked . | . . . . Overload Shots . | . . . . Overflow Damage . | . . . . Projectiles . | . . . . Explosions . | . . . . Melee . | . . . . Knockbacks 1 | . . . 1 Impact . | . . . . Kinetic 1 | . . . 1 Secondary . | . . . . Self-Inflicted Damage . | . . . . Shots . | . . . . Rammed . | . . . . Targets Rammed . | . . . . Kicked . | . . . . Crushed . | . . . . Highest Temperature 168 | 36 120 168 73 Average Temperature 40 | 12 44 72 40 Received Heat Transfer 154 | . 54 . 100 Siege Activations . | . . . . Martial Activations . | . . . . Shielding Activations . | . . . . Robots Disrupted . | . . . . Combat Hostiles . | . . . . Robots Corrupted . | . . . . Combat Hostiles . | . . . . Parts Fried . | . . . . Impact Corruptions . | . . . . Robots Melted . | . . . . Combat Hostiles . | . . . . Parts Melted . | . . . . Heat Transferred 699 | 444 120 105 30 Parts Sabotaged . | . . . . Parts Stolen . | . . . . Parts Stripped . | . . . . Power Chain Reactions . | . . . . Alert | -11 -10 -10 -10 ------- Run | Yrd Mat Min Exi Maximum Alert Level . | . . . . Low Security (%) 100 | 100 100 100 . Level 1 . | . . . . Level 2 . | . . . . Level 3 . | . . . . Level 4 . | . . . . Level 5 . | . . . . High Security . | . . . . Max Security . | . . . . Peak Influence 91 | 5 72 91 . Initial 21 | . . 21 . Average 16 | 1 17 24 . Influence Increases 322 | 35 167 120 . Destroy 0b10 Robot/C 200 | . 100 100 . Destroy 0b10 Robot/NC 45 | 35 10 . . Destroy Leader 44 | . 24 20 . Successful Hack 32 | . 32 . . Destroy Structure 1 | . 1 . . Influence Decreases 322 | 35 112 175 . Entered New Map 34 | . . 34 . Time Decay 278 | 35 112 131 . Lost Part 10 | . . 10 . Squads Dispatched 1 | . 1 . . Investigation . | . . . . Extermination . | . . . . Reinforcement 1 | . 1 . . Assault . | . . . . Garrison . | . . . . Intercept . | . . . . Searches Triggered . | . . . . Construction Impeded . | . . . . Haulers Reinforced . | . . . . Active Scanning Responses . | . . . . Cargo Convoy Interrupts . | . . . . Stealth | -11 -10 -10 -10 --------- Run | Yrd Mat Min Exi Distress Signals . | . . . . Communications Jammed . | . . . . Distress Signals . | . . . . Times Spotted 24 | . 10 5 9 Peak Tracking Total 12 | . 3 3 12 Tactical Retreats 1 | . . . 1 Traps | -11 -10 -10 -10 ------- Run | Yrd Mat Min Exi Traps Triggered 2 | . 2 . . Indirectly . | . . . . Trap Hack Attempts . | . . . . Triggered . | . . . . Disarmed . | . . . . Reprogrammed . | . . . . Reused . | . . . . Traps Extracted . | . . . . Installed . | . . . . Triggered . | . . . . Machines | -11 -10 -10 -10 ---------- Run | Yrd Mat Min Exi Machines Disabled 1 | . . . 1 Max in Single Turn 1 | . . . 1 Machines Repaired . | . . . . Machines Dismantled . | . . . . Machines Sabotaged . | . . . . Overloaded Fab Kills . | . . . . Hacking | -11 -10 -10 -10 --------- Run | Yrd Mat Min Exi Machines Accessed 4 | . 4 . . Terminals 4 | . 4 . . Fabricators . | . . . . Repair Stations . | . . . . Recycling Units . | . . . . Scanalyzers . | . . . . Garrison Access . | . . . . Total Hacks 9 | . 9 . . Successful 7 | . 7 . . Failed 2 | . 2 . . Catastrophic . | . . . . Database Lockouts . | . . . . Manual 4 | . 4 . . Terminals 9 | . 9 . . Fabricators . | . . . . Repair Stations . | . . . . Recycling Units . | . . . . Scanalyzers . | . . . . Garrison Access . | . . . . Terminal Hacks 7 | . 7 . . Record 3 | . 3 . . Branch Access Points 1 | . 1 . . Alert Level 2 | . 2 . . Zone Layout 1 | . 1 . . Fabricator Hacks . | . . . . Repair Station Hacks . | . . . . Recycling Unit Hacks . | . . . . Scanalyzer . | . . . . Garrison Access Hacks . | . . . . Unauthorized Hacks . | . . . . Terminals . | . . . . Fabricators . | . . . . Repair Stations . | . . . . Recycling Units . | . . . . Scanalyzers . | . . . . Garrison Access . | . . . . Data Cores Recovered . | . . . . Used . | . . . . Hacking Detections 3 | . 3 . . Full Trace Events . | . . . . Feedback Events . | . . . . Feedback Blocked . | . . . . Robot Schematics Acquired . | . . . . Robots Built . | . . . . Authchips . | . . . . Time . | . . . . Total Robot Build Rating . | . . . . Part Schematics Acquired . | . . . . Parts Built . | . . . . Authchips . | . . . . Time . | . . . . Total Part Build Rating . | . . . . Part Studies Acquired . | . . . . Parts Repaired . | . . . . Time . | . . . . Parts Recycled . | . . . . Recycled Matter . | . . . . Retrieved Matter . | . . . . Retrieved Components . | . . . . Parts Scanalyzed . | . . . . Part Schematics Acquired . | . . . . Parts Damaged . | . . . . Bothacking | -11 -10 -10 -10 ------------ Run | Yrd Mat Min Exi Used RIF Installer . | . . . . Robots Hacked . | . . . . Non-combat . | . . . . Combat . | . . . . Robot Hacks Applied . | . . . . Relay Couplers Released . | . . . . Fabnet Peak Effective % . | . . . . Robots Rewired . | . . . . Allies Hacked . | . . . . Hacks Repelled . | . . . . Allies | -11 -10 -10 -10 -------- Run | Yrd Mat Min Exi Total Allies . | . . . . Largest Group . | . . . . Highest-Rated Group . | . . . . Highest-Rated Ally . | . . . . Total Orders . | . . . . Ally Attacks . | . . . . Total Damage . | . . . . Kills . | . . . . Allies Corrupted . | . . . . Allies Melted . | . . . . Intel | -11 -10 -10 -10 ------- Run | Yrd Mat Min Exi Active Infowar (turns) 1714 | 9 537 440 728 Terrain 1714 | 9 537 440 728 Robot Analysis Total . | . . . . Derelict Logs Recovered 1 | . . 1 . Drone Launches . | . . . . Drone Recoveries . | . . . . Exploration | -11 -10 -10 -10 ------------- Run | Yrd Mat Min Exi Turns Passed 1984 | 260 537 440 747 Spaces Moved 913 | 119 204 210 380 Core 11 | 5 1 . 5 Treads 171 | 114 57 . . Legs 731 | . 146 210 375 Wheels . | . . . . Hover . | . . . . Flight . | . . . . Fastest Speed 50 | 50 160 190 120 Average Speed 186 | 155 201 190 186 Slowest Speed 260 | 160 260 190 200 Overloaded Moves . | . . . . Propulsion Burnouts . | . . . . Robots Hopped . | . . . . Potential Cave-ins . | . . . . Cave-ins Triggered . | . . . . Exploration Rate (%) 38 | 7 39 39 67 Regions Visited 3 Branch Regions 2 Pre-discovered Areas . | . . . . Known Exits Taken 1 | . 1 . . Unknown Exits Taken 2 | 1 . 1 . Scrap Searched 1 | . . 1 . Spaces Dug . | . . . . Terrain Destroyed . | . . . . Melee . | . . . . Projectile . | . . . . AOE . | . . . . Terrain Rammed . | . . . . Walls Destroyed . | . . . . Machines Disabled . | . . . . Actions | -11 -10 -10 -10 --------- Run | Yrd Mat Min Exi Total 1113 | 157 309 229 418 Wait 86 | . 75 6 5 Move 910 | 118 203 209 380 Hop . | . . . . Pick Up 37 | 12 11 2 12 Fast Attach . | . . . . Attach 19 | 6 6 1 6 Detach 4 | . . . 4 Swap . | . . . . Drop 10 | 2 2 . 6 Fire 45 | 19 12 11 3 Melee . | . . . . Ram . | . . . . Kick . | . . . . Crush . | . . . . Escape Stasis . | . . . . Rewire 2 | . . . 2 Trap . | . . . . Miscellaneous . | . . . . Route ------- -11/Scrapyard -10/Materials (discovered 3 exits: [*Mat] / *Min x2) -10/Mines -10/Exiles (discovered 1 exit: [*Min]) History --------- Turn | Location | Event 15 | -11/Scrapyard | Discovered new exit (range 16) 261 | -11/Scrapyard | Entered Materials 309 | -10/Materials | Build established: Mutant 629 | -10/Materials | Discovered new exit (range 8) 675 | -10/Materials | Discovered new exit (range 10) 772 | -10/Materials | Identified exit to Mines 798 | -10/Materials | Entered Mines 838 | -10/Mines | Met a Derelict bent on vengeance 874 | -10/Mines | Learned location of 1 exit from Materials 1178 | -10/Mines | Found a hidden stash of uninstalled traps 1207 | -10/Mines | Discovered new exit (range 14) 1226 | -10/Mines | Deemed a non-threat by the Exiles lab entrance 1238 | -10/Mines | Entered Exiles 1273 | -10/Exiles | Discovered new exit (range 14) 1336 | -10/Exiles | Met 8R-AWN 1367 | -10/Exiles | Met EX-HEX 1470 | -10/Exiles | Met EX-DEC 1725 | -10/Exiles | Visited The Gauntlet 1942 | -10/Exiles | Attacked by the Exiles 1950 | -10/Exiles | Core integrity fell below 50% 1978 | -10/Exiles | Core integrity fell below 20% 1985 | -10/Exiles | Destroyed by as-32330 with Assembled Blade Last Messages --------------- Extracted 4 energy. Acquired Med. Battery. Dropped Imp. Light Cannon. Acquired Imp. Light Cannon. DK-RAY: Welcome to The Gauntlet! If a prototype's bugged this is where we stop it. Unless we don't. But that rarely happens, honest! EXILES: Hostile robot within lab perimeter. Defensive protocols time, folks! Ion Engine destroyed. EX-DEC: "Let's see what this bad boy can do..." EX-DEC deploys DAS Turret. Knocked back. Imp. Light Cannon destroyed. Spread Laser destroyed. Knocked back. EX-BIN: "I just want to science!" Aluminum Leg destroyed. Machine disabled. Map ----- +----------------------------------------------------+ | ?????????????????????????????????????????????????? | | ?????????????????????????????????????????????????? | | ?????????????????????????????????????????????????? | | ?????????????????????????????????????????????????? | | ?????????????????????????????????????????????????? | | ?????????????????????????????????????????????????? | | ?????????????????????????????????????????????????? | | ?????????????????????????????????????????????????? | | ?????????????????????????????????????????????????? | | ?????????????????????????????????????????????????? | | ?????????????????????????????????????????????????? | | ?????????????????????????????????????????????????? | | ??????????????????????????????????????????#??????? | | ?????????????????????????????????????????????????? | | ?????????????????????????#????????????????????##?? | | ?????????????? ??????????????#######?????????????? | | ????????????? ######???????#!!! "#?????????????? | | ????????????? #""#??????# "#?????????????? | | ????????????? ??????# "#??????????#?#? | | ?????????????" #????## ""#??????????#### | | ?????????????" #####" ""#??#???????# | | ??????????????# ##" ""#??????????#"" | | ???????????????# #"" #???????????##"" | | ??????????????????# #????#????#??#"" | | ?????????????????????# ##???????????#"" | | ????????????????#?????## @aa a "#????#??????# | | ??????????????????????#" aa ###?????????#"" | | ????????????????????"""" ##????????### | | ?????????????????? "###"" ######???### | | ????????????????? "#?## """#####X# | | ????????????????? ##??#" a | | ???????????????# !""""""###???#"# | | ???????????????#########??????#### | | ?????????????????????#?#?????????### | | ??????????????????????????????????#### | | ?????????????????????????????????????## | | ???????????????????????????????????#??## | | ?????????????????????????#???#?????????##" | | ??????????????????????????????????#?#???#""" | | ??????????????????????????????????????###" | | ???????????????????????????????????????#"" | | ?????????????????????????????#????????##""" % % | | ??????????????????????????????????#???#""" % | | ?????????????????????????????????#?#?##""" % | | ??????????????????????????????????#???#" | | ??????????????????????????????????????#""" | | ??????????????????????????????????????#"" % | | ??????????????????????????????????????##"" | | ???????????????????????????????????????#"""" | | ???????????????????????????????????????## % | +----------------------------------------------------+ Best States ------------- Heat Dissipation 25 Energy Generation 10 Energy Capacity 250 Matter Stores 300 Matter Capacity 300 Sight Range 16 Terrain Scan Range 16 Terrain Scan Density 10 Evasion (%) 50 Recoil Reduction 2 Item Schematics ----------------- None Robot Schematics ------------------ None Fabricated ------------ Nothing Repaired ---------- Nothing Studied --------- None Alien Tech Used ----------------- None Achievements -------------- None Challenges ------------ None Game ------ Seed GammaArcsightFrame Manual? 0 Play Time 00:38:19 Cumulative 1.5 hours Start 2025.11.09 @ 01:41:48 End 2025.11.11 @ 15:47:03 Sessions 3 Manual Loads 0 Difficulty Rogue Special Mode None Game No. 5 Rogue 5 Adventurer 0 Explorer 0 Win Type - Total 0 Types 0/0/0/0/0/0/0/0/0/0 Lore% 1 Gallery% 2 Achievement% 21 Wizard Run 0 Options --------- Layout 1 ASCII 0 Keyboard 1 Movement Numpad Keybinds 0 Fullscreen 1 Font 24/Smallcaps Map View 50x35 Zoom Use 0% Tactical HUD 0 Map Filters NONE Filters NONE Steam 1 RUN: 96130c99-dd92-482c-830c-ba0679aa2b50